bitfinex-derivatives/quotes_BTCF0:USTF0_20250505
["timestamp","ask_amount","ask_price","bid_price","bid_amount"]
[1746412352748,0.40036437,94441.0,94440.0,0.933364]
[1746412353144,0.30860257,94441.0,94440.0,0.933364]
[1746412353645,0.52036437,94441.0,94440.0,0.933364]
[1746412353852,0.62876437,94441.0,94440.0,0.933364]
[1746412355954,0.4401618,94441.0,94440.0,0.933364]
[1746412356154,0.54604981,94441.0,94440.0,0.933364]
[1746412357253,0.33428801,94441.0,94440.0,0.933364]
[1746412357451,0.33428801,94441.0,94432.0,0.3608]
[1746412357658,0.0529422,94440.0,94432.0,0.3608]
[1746412357854,0.2117797,94433.0,94432.0,0.3608]
[1746412358055,0.3317797,94433.0,94432.0,0.572582]
[1746412358870,0.4423797,94433.0,94432.0,0.572582]
[1746412368878,0.4423797,94433.0,94428.0,0.0529475]
[1746412368879,0.2117999,94424.0,94423.0,0.3608]
[1746412369372,0.3317999,94424.0,94423.0,0.3608]
[1746412369578,0.3317999,94424.0,94423.0,0.5726022]
[1746412369871,0.4438999,94424.0,94423.0,0.5726022]
[1746412375675,0.4438999,94424.0,94423.0,0.3608]
[1746412375875,0.4438999,94424.0,94409.0,0.2118336]
[1746412375876,0.338004,94424.0,94409.0,0.2118336]
[1746412376175,0.2647948,94412.0,94407.0,0.052959]
[1746412376369,0.2647948,94412.0,94411.0,0.2118165]
[1746412376370,0.211837,94412.0,94411.0,0.2118165]
[1746412376570,0.12,94424.0,94411.0,0.3608]
[1746412376777,0.2647637,94423.0,94422.0,0.2118022]
[1746412376974,0.2647637,94423.0,94422.0,0.5726022]
[1746412377173,0.4906717,94423.0,94422.0,0.5726022]
[1746412378078,0.3847637,94423.0,94422.0,0.5726022]
[1746412383981,0.3847637,94423.0,94422.0,0.2118022]
[1746412384285,0.2118336,94411.0,94410.0,0.2647801]
[1746412384482,0.2118313,94410.0,94409.0,0.0552]
[1746412384891,0.22287858,94410.0,94409.0,0.0552]
[1746412385186,0.34287858,94410.0,94409.0,0.0552]
[1746412385685,0.34287858,94410.0,94409.0,0.2670336]
[1746412385987,0.3318313,94410.0,94409.0,0.2118336]
[1746412387387,0.2648209,94402.0,94401.0,0.2648066]
[1746412388284,0.3848209,94402.0,94401.0,0.2648066]
[1746412388986,0.3318579,94402.0,94401.0,0.2648066]
[1746412390990,0.12,94402.0,94401.0,0.2648066]
[1746412391385,0.12,94402.0,94401.0,0.3746066]
[1746412395094,0.64251886,94412.0,94411.0,0.2118291]
[1746412395987,0.64251886,94412.0,94411.0,0.3237291]
[1746412396285,0.76251886,94412.0,94411.0,0.3237291]
[1746412397498,0.57383841,94412.0,94411.0,0.3237291]
[1746412399195,0.57383841,94412.0,94411.0,0.0559]
[1746412399392,0.2118493,94404.0,94403.0,0.211845]
[1746412399595,0.2118493,94402.0,94401.0,0.1127]
[1746412399898,0.2118493,94402.0,94401.0,0.3245515]
[1746412400098,0.3318493,94402.0,94401.0,0.3245515]
[1746412400299,0.3854493,94402.0,94401.0,0.3245515]
[1746412401792,0.2118583,94398.0,94397.0,0.00158903]
[1746412402697,0.2118583,94398.0,94397.0,0.21344953]
[1746412402893,0.2118583,94398.0,94397.0,0.00158903]
[1746412403292,0.3318583,94398.0,94397.0,0.00158903]
[1746412403499,0.3318583,94398.0,94397.0,0.27054953]
[1746412405110,0.3318583,94398.0,94397.0,0.00158903]
[1746412411415,0.3318583,94398.0,94397.0,0.21344953]
[1746412411615,0.3318583,94398.0,94397.0,0.00158903]
[1746412412421,0.3882583,94398.0,94397.0,0.00158903]
[1746412418023,0.3318583,94398.0,94397.0,0.21344953]
[1746412419025,0.3318583,94398.0,94397.0,0.32064953]
[1746412419822,0.3818583,94398.0,94397.0,0.32064953]
[1746412424313,0.4368583,94398.0,94397.0,0.32064953]
[1746412427127,0.4368583,94398.0,94397.0,0.10878903]
[1746412427324,0.4368583,94398.0,94397.0,0.32064953]
[1746412434237,0.3868583,94398.0,94397.0,0.32064953]
[1746412435639,0.3318583,94398.0,94397.0,0.32064953]
[1746412435823,0.12,94398.0,94397.0,0.32064953]
[1746412436226,0.40072375,94404.0,94403.0,0.211847]
[1746412437135,0.40072375,94404.0,94403.0,0.319647]
[1746412437441,0.18887895,94404.0,94403.0,0.319647]
[1746412439326,0.24201041,94410.0,94403.0,0.1607613]
[1746412439525,0.24201041,94410.0,94409.0,0.2118336]
[1746412440336,0.24201041,94410.0,94409.0,0.3215336]
[1746412442633,0.537393,94415.0,94414.0,0.2118223]
[1746412443229,0.6044378,94415.0,94414.0,0.2118223]
[1746412443429,0.6044378,94415.0,94414.0,0.3793223]
[1746412445635,0.3926155,94415.0,94414.0,0.3793223]
[1746412446840,0.1766,94415.0,94414.0,0.3793223]
[1746412447038,0.3884201,94415.0,94414.0,0.3793223]
[1746412447337,0.4408201,94415.0,94414.0,0.3793223]
[1746412449240,0.4408201,94415.0,94414.0,0.3236223]
[1746412450334,0.4408201,94415.0,94414.0,0.1118]
[1746412450535,0.4408201,94415.0,94409.0,0.3608]
[1746412450536,0.2118313,94410.0,94409.0,0.3608]
[1746412450744,0.2118313,94410.0,94406.0,0.0532]
[1746412450745,0.2118501,94404.0,94403.0,0.2648012]
[1746412450932,0.2618501,94404.0,94403.0,0.2118396]
[1746412451129,0.2118583,94398.0,94395.0,0.0529659]
[1746412451943,0.2686583,94398.0,94396.0,0.0565]
[1746412452137,0.3886583,94398.0,94397.0,0.57424953]
[1746412453035,0.12,94398.0,94397.0,0.57424953]
[1746412453245,0.1768,94398.0,94397.0,0.68204953]
[1746412460142,0.1768,94398.0,94397.0,0.62804953]
[1746412462146,0.1768,94398.0,94397.0,0.57424953]
[1746412463142,0.3886583,94398.0,94397.0,0.36238903]
[1746412463343,0.4386583,94398.0,94397.0,0.36238903]
[1746412463549,0.4386583,94398.0,94397.0,0.57424953]
[1746412466451,0.4386583,94398.0,94397.0,0.36238903]
[1746412466753,0.4386583,94398.0,94397.0,0.57424953]
[1746412467950,0.4386583,94398.0,94397.0,0.36238903]
[1746412468452,0.2268,94398.0,94397.0,0.57424953]
[1746412469056,0.4386583,94398.0,94397.0,0.57424953]
[1746412469347,0.4944583,94398.0,94397.0,0.62784953]
[1746412477157,0.1768,94398.0,94397.0,0.62784953]
[1746412477361,0.12,94398.0,94397.0,0.62784953]
[1746412477572,0.12,94398.0,94397.0,0.67984953]
[1746412478258,0.2118493,94402.0,94401.0,0.2118515]
[1746412478457,0.2118454,94404.0,94403.0,0.2648039]
[1746412479157,0.3318454,94404.0,94403.0,0.2648039]
[1746412479354,0.3318454,94404.0,94403.0,0.3726039]
[1746412481960,0.3318454,94404.0,94403.0,0.3196425]
[1746412482258,0.3849454,94404.0,94403.0,0.3196425]
[1746412483861,0.1731,94404.0,94403.0,0.3196425]
[1746412484059,0.12,94404.0,94403.0,0.3196425]
[1746412484258,0.3318448,94404.0,94403.0,0.3196425]
[1746412486065,0.3318448,94404.0,94403.0,0.6804425]
[1746412486971,0.12,94404.0,94403.0,0.6804425]
[1746412487158,0.18907274,94405.0,94404.0,0.2118448]
[1746412487359,0.0555,94417.0,94409.0,0.2647865]
[1746412487360,0.2118327,94410.0,94409.0,0.2647865]
[1746412488270,0.3318327,94410.0,94409.0,0.2647865]
[1746412490070,0.12,94410.0,94409.0,0.2647865]
[1746412490267,0.18900958,94412.0,94411.0,0.2118291]
[1746412490571,0.18900958,94412.0,94411.0,0.5726291]
[1746412490764,0.18900958,94412.0,94411.0,0.2118291]
[1746412490960,0.18900958,94412.0,94411.0,0.6807291]
[1746412492865,0.24320958,94412.0,94411.0,0.6807291]
[1746412493975,0.0542,94412.0,94411.0,0.6807291]
[1746412494176,0.1742,94412.0,94411.0,0.3199291]
[1746412494474,0.1742,94412.0,94411.0,0.6807291]
[1746412495068,0.0542,94412.0,94411.0,0.6807291]
[1746412495983,0.2660268,94412.0,94411.0,0.6807291]
[1746412496368,0.0542,94412.0,94411.0,0.6807291]
[1746412496976,0.2660268,94412.0,94411.0,0.6807291]
[1746412497175,0.0542,94412.0,94411.0,0.6807291]
[1746412497579,0.2660268,94412.0,94411.0,0.4169]
[1746412497774,0.0542,94412.0,94411.0,0.6287291]
[1746412497984,0.2660268,94412.0,94411.0,0.6287291]
[1746412498177,0.3860268,94412.0,94411.0,0.6287291]
[1746412499283,0.12,94412.0,94411.0,0.6287291]
[1746412499484,0.12,94412.0,94411.0,0.6805291]
[1746412500184,0.29641155,94419.0,94418.0,0.2118134]
[1746412501072,0.29641155,94419.0,94418.0,0.3169134]
[1746412504997,0.0545,94425.0,94424.0,0.2117999]
[1746412505192,0.0545,94425.0,94424.0,0.5725999]
[1746412505992,0.0545,94425.0,94424.0,0.6835999]
[1746412506192,0.1745,94425.0,94424.0,0.6835999]
[1746412508094,0.0545,94425.0,94424.0,0.6835999]
[1746412508798,0.0545,94425.0,94424.0,0.3227999]
[1746412509198,0.2254,94425.0,94424.0,0.3227999]
[1746412509597,0.4371977,94425.0,94424.0,0.2117999]
[1746412511693,0.0529511,94422.0,94419.0,0.3608]
[1746412511893,0.1073,94421.0,94420.0,0.2118089]
[1746412512200,0.2273,94421.0,94420.0,0.2656089]
[1746412512401,0.4391066,94421.0,94420.0,0.2656089]
[1746412512601,0.4391066,94421.0,94420.0,0.2118089]
[1746412513004,0.4391066,94421.0,94420.0,0.0538]
[1746412513207,0.2118268,94412.0,94411.0,0.3608]
[1746412513395,0.2618268,94412.0,94411.0,0.3608]
[1746412513598,0.2618268,94412.0,94411.0,0.5726291]
[1746412514007,0.3691268,94412.0,94411.0,0.5726291]
[1746412514307,0.4891268,94412.0,94411.0,0.5726291]
[1746412514501,0.5002628,94412.0,94411.0,0.5726291]
[1746412514701,0.5002628,94412.0,94411.0,0.3608]
[1746412515005,0.5002628,94412.0,94411.0,0.5726291]
[1746412516808,0.4891268,94412.0,94411.0,0.5726291]
[1746412517003,0.2273,94412.0,94411.0,0.5726291]
[1746412517405,0.2273,94412.0,94411.0,0.6258291]
[1746412518805,0.4391268,94412.0,94411.0,0.6258291]
[1746412520006,0.4391268,94412.0,94411.0,0.3608]
[1746412521615,0.4391268,94412.0,94411.0,0.5726291]
[1746412522111,0.4391268,94412.0,94411.0,0.3608]
[1746412522516,0.4891268,94412.0,94411.0,0.3608]
[1746412525416,0.4891268,94412.0,94411.0,0.3762541]
[1746412525913,0.5950468,94412.0,94411.0,0.3762541]
[1746412526120,0.4891268,94412.0,94411.0,0.3608]
[1746412533921,0.2118381,94407.0,94406.0,0.2118395]
[1746412534222,0.3318381,94407.0,94406.0,0.2118395]
[1746412535023,0.4377381,94407.0,94406.0,0.2118395]
[1746412536929,0.4377381,94407.0,94406.0,0.2633395]
[1746412537326,0.2788598,94407.0,94399.0,0.3608]
[1746412537517,0.2648124,94404.0,94403.0,0.2118465]
[1746412538224,0.3848124,94404.0,94403.0,0.2118465]
[1746412539725,0.3848124,94404.0,94401.0,0.0529628]
[1746412539726,0.211847,94403.0,94402.0,0.0529]
[1746412539928,0.315847,94403.0,94402.0,0.3156493]
[1746412540225,0.435847,94403.0,94402.0,0.3156493]
[1746412540730,0.435847,94403.0,94399.0,0.3608]
[1746412540731,0.2118538,94400.0,94399.0,0.3608]
[1746412540926,0.2618538,94400.0,94399.0,0.3608]
[1746412541229,0.3818538,94400.0,94399.0,0.3608]
[1746412541423,0.3818538,94400.0,94399.0,0.572656]
[1746412541624,0.3818538,94400.0,94399.0,0.676456]
[1746412542026,0.3818538,94400.0,94399.0,0.4646]
[1746412545332,0.3818538,94400.0,94399.0,0.676456]
[1746412545727,0.17,94400.0,94399.0,0.676456]
[1746412546032,0.3818538,94400.0,94399.0,0.676456]
[1746412546232,0.12,94400.0,94399.0,0.676456]
[1746412546635,0.3318538,94400.0,94399.0,0.676456]
[1746412547631,0.12,94400.0,94399.0,0.676456]
[1746412548234,0.2639401,94407.0,94406.0,0.2118403]
[1746412548838,0.2118224,94414.0,94413.0,0.2118246]
[1746412550240,0.3318224,94414.0,94413.0,0.2623246]
[1746412551136,0.3818224,94414.0,94413.0,0.2623246]
[1746412551333,0.12,94414.0,94413.0,0.2623246]
[1746412552337,0.2640048,94422.0,94421.0,0.2118066]
[1746412552533,0.2117963,94426.0,94425.0,0.2117977]
[1746412553236,0.3317963,94426.0,94425.0,0.2117977]
[1746412554130,0.3317963,94426.0,94425.0,0.3114977]
[1746412554436,0.12,94426.0,94425.0,0.3114977]
[1746412554638,0.3317954,94426.0,94425.0,0.3114977]
[1746412554833,0.12,94426.0,94425.0,0.3114977]
[1746412555136,0.2117954,94426.0,94425.0,0.3644464]
[1746412556933,0.2117919,94428.0,94427.0,0.2117932]
[1746412558136,0.2647919,94428.0,94427.0,0.2117932]
[1746412561339,0.21574233,94429.0,94428.0,0.2117909]
[1746412561537,0.47753103,94429.0,94428.0,0.2117909]
[1746412562327,0.26574233,94429.0,94428.0,0.2117909]
[1746412562640,0.47753103,94429.0,94428.0,0.2117909]
[1746412563642,0.2617887,94429.0,94428.0,0.2117909]
[1746412563850,0.2617887,94429.0,94428.0,0.2011909]
[1746412564138,0.05,94429.0,94428.0,0.2011909]
[1746412564535,0.0532,94432.0,94431.0,0.2117842]
[1746412564836,0.0532,94432.0,94426.0,0.3608]
[1746412564837,0.001,94446.0,94442.0,0.2117595]
[1746412565031,0.211753,94445.0,94442.0,0.2117595]
[1746412565434,0.2117551,94444.0,94442.0,0.2117595]
[1746412565628,0.001,94446.0,94442.0,0.2117595]
[1746412566236,0.33574233,94443.0,94442.0,0.2643595]
[1746412566634,0.12,94443.0,94442.0,0.2643595]
[1746412567040,0.12,94443.0,94442.0,1.7643595]
[1746412567341,0.001,94446.0,94445.0,0.2117528]
[1746412568237,0.001,94446.0,94445.0,0.2643528]
[1746412568432,0.001,94446.0,94445.0,0.6202328]
[1746412569235,0.001,94446.0,94445.0,0.3702328]
[1746412574238,0.001,94446.0,94445.0,0.4902328]
[1746412576047,0.001,94446.0,94445.0,0.76601434]
[1746412576242,0.0015,94450.0,94449.0,0.2117439]
[1746412576443,0.0015,94450.0,94449.0,0.5725439]
[1746412576750,0.0015,94450.0,94449.0,0.6784199]
[1746412577244,0.0015,94450.0,94449.0,0.7799199]
[1746412579450,0.0015,94450.0,94449.0,0.8547199]
[1746412582149,0.0015,94450.0,94449.0,0.7488439]
[1746412582850,0.2132416,94450.0,94449.0,0.5725439]
[1746412583249,0.4338416,94450.0,94449.0,0.5725439]
[1746412590258,0.4448416,94450.0,94449.0,0.5735439]
[1746412590453,0.2331,94450.0,94449.0,0.5735439]
[1746412590758,0.2221,94450.0,94449.0,0.5725439]
[1746412590957,0.2331,94450.0,94449.0,0.5735439]
[1746412591556,0.4448416,94450.0,94449.0,0.5735439]
[1746412591762,0.4448416,94450.0,94449.0,0.001]
[1746412591961,0.4948416,94450.0,94449.0,0.001]
[1746412592461,0.2107461,94448.0,94447.0,0.2117473]
[1746412592859,0.22184791,94448.0,94447.0,0.2117473]
[1746412593056,0.22184791,94448.0,94433.0,0.0996446]
[1746412593057,0.0529414,94440.0,94433.0,0.0529446]
[1746412593255,0.0529391,94444.0,94429.0,0.4137468]
[1746412593256,0.2117797,94433.0,94429.0,0.4137469]
[1746412593562,0.2117797,94433.0,94432.0,0.211782]
[1746412593755,0.2117797,94433.0,94432.0,0.3608]
[1746412594057,0.2117932,94429.0,94428.0,0.2117899]
[1746412594260,0.2107932,94429.0,94428.0,0.2117899]
[1746412595061,0.0489,94432.0,94431.0,0.2117842]
[1746412595266,0.0497,94432.0,94431.0,0.6255299]
[1746412595656,0.0487,94432.0,94431.0,0.6255299]
[1746412596162,0.1687,94432.0,94431.0,0.6255299]
[1746412596462,0.133,94432.0,94431.0,0.6265299]
[1746412597055,0.133,94432.0,94431.0,2.13744442]
[1746412597256,0.00794445,94440.0,94439.0,0.2117663]
[1746412597462,0.2117565,94444.0,94443.0,0.2117573]
[1746412598163,0.3317565,94444.0,94443.0,0.2117573]
[1746412598363,0.12810928,94444.0,94443.0,0.2117573]
[1746412599467,0.35586438,94444.0,94443.0,0.2127573]
[1746412599657,0.14410928,94444.0,94443.0,0.2127573]
[1746412599860,0.14410928,94444.0,94443.0,0.2117573]
[1746412600061,0.14410928,94444.0,94443.0,0.3071573]
[1746412601260,0.02410928,94444.0,94443.0,0.3071573]
[1746412602158,0.016,94444.0,94443.0,0.3071573]
[1746412606461,0.0240046,94444.0,94443.0,0.3071573]
[1746412608467,0.0200046,94444.0,94443.0,0.3071573]
[1746412608672,0.2317597,94444.0,94443.0,0.2127573]
[1746412609172,0.3517597,94444.0,94443.0,0.2127573]
[1746412610168,0.3517597,94444.0,94443.0,0.2588573]
[1746412611078,0.3527597,94444.0,94443.0,0.2588573]
[1746412611274,0.3527597,94444.0,94443.0,0.001]
[1746412611469,0.3527597,94444.0,94443.0,0.2127573]
[1746412611966,0.3991597,94444.0,94443.0,0.2127573]
[1746412612563,0.4358597,94444.0,94443.0,0.2117573]
[1746412612775,0.4498597,94444.0,94443.0,0.2127573]
[1746412614677,0.4358597,94444.0,94443.0,0.2117573]
[1746412614870,0.4498597,94444.0,94443.0,0.2127573]
[1746412615777,0.4358597,94444.0,94443.0,0.2117573]
[1746412615982,0.4498597,94444.0,94443.0,0.2127573]
[1746412616790,0.4498597,94444.0,94443.0,0.2624573]
[1746412618391,0.4498597,94444.0,94443.0,0.2614573]
[1746412618690,0.4498597,94444.0,94443.0,0.2624573]
[1746412619592,0.4358597,94444.0,94443.0,0.2614573]
[1746412619893,0.4498597,94444.0,94443.0,0.2624573]
[1746412621094,0.4358597,94444.0,94443.0,0.2614573]
[1746412621396,0.4498597,94444.0,94443.0,0.2624573]
[1746412622795,0.4358597,94444.0,94443.0,0.2614573]
[1746412622995,0.4498597,94444.0,94443.0,0.2624573]
[1746412627001,0.2381046,94444.0,94443.0,0.2624573]
[1746412627299,0.4498597,94444.0,94443.0,0.2624573]
[1746412627602,0.4358597,94444.0,94443.0,0.2614573]
[1746412627799,0.4498597,94444.0,94443.0,0.2624573]
[1746412629400,0.4498597,94444.0,94443.0,0.6232573]
[1746412629898,0.4498597,94444.0,94443.0,0.3618]
[1746412630095,0.2117775,94434.0,94433.0,0.5725797]
[1746412630399,0.2107775,94434.0,94433.0,0.5725797]
[1746412631000,0.3083775,94434.0,94433.0,0.5725797]
[1746412631203,0.4283775,94434.0,94433.0,0.5725797]
[1746412631501,0.4283775,94434.0,94433.0,0.5735797]
[1746412631703,0.4413775,94434.0,94433.0,0.5735797]
[1746412631901,0.2306,94434.0,94433.0,0.5735797]
[1746412632699,0.4423775,94434.0,94433.0,0.3618]
[1746412632895,0.2117977,94425.0,94424.0,0.5725999]
[1746412633094,0.3317977,94425.0,94424.0,0.3608]
[1746412633300,0.3317977,94425.0,94424.0,0.5725999]
[1746412633901,0.4283977,94425.0,94424.0,0.5725999]
[1746412634101,0.4403977,94425.0,94424.0,0.5735999]
[1746412634296,0.4403977,94425.0,94424.0,0.001]
[1746412634501,0.4903977,94425.0,94424.0,0.001]
[1746412634906,0.4903977,94425.0,94424.0,0.2127999]
[1746412635397,0.4903977,94425.0,94424.0,0.001]
[1746412636402,0.4903977,94425.0,94424.0,0.2127999]
[1746412636599,0.2286,94425.0,94424.0,0.2127999]
[1746412636796,0.4403977,94425.0,94424.0,0.2127999]
[1746412637095,0.4403977,94425.0,94424.0,0.2608999]
[1746412637797,0.4403977,94425.0,94424.0,0.3096999]
[1746412639000,0.1827,94425.0,94424.0,0.3096999]
[1746412640103,0.3944977,94425.0,94424.0,0.3096999]
[1746412641201,0.4435977,94425.0,94424.0,0.3096999]
[1746412643005,0.132,94425.0,94424.0,0.3096999]
[1746412643209,0.13,94425.0,94424.0,0.6656039]
[1746412644009,0.0538,94425.0,94424.0,2.1656039]
[1746412644307,0.012,94425.0,94424.0,2.2856039]
[1746412645107,0.0465,94449.0,94424.0,2.2856039]
[1746412645108,0.2117459,94449.0,94443.0,0.2117573]
[1746412645308,0.2117459,94449.0,94448.0,0.2117461]
[1746412646308,0.0015,94450.0,94449.0,0.2117439]
[1746412646711,0.2132416,94450.0,94449.0,0.2117439]
[1746412647103,0.2132416,94450.0,94449.0,0.2595439]
[1746412647510,0.2202416,94450.0,94449.0,0.2605439]
[1746412648009,0.22133838,94450.0,94449.0,0.2595439]
[1746412648309,0.27703838,94450.0,94449.0,0.2595439]
[1746412648910,0.22833838,94450.0,94449.0,0.2595439]
[1746412649408,0.27483838,94450.0,94449.0,0.2595439]
[1746412650606,0.27483838,94450.0,94449.0,0.2605439]
[1746412651109,0.27483838,94450.0,94449.0,0.2595439]
[1746412651312,0.27483838,94450.0,94449.0,0.2605439]
[1746412652305,0.32443838,94450.0,94449.0,0.2605439]
[1746412653110,0.44443838,94450.0,94449.0,0.2605439]
[1746412654113,0.32443838,94450.0,94449.0,0.2605439]
[1746412654503,0.27483838,94450.0,94449.0,0.2605439]
[1746412655412,0.01659678,94450.0,94449.0,0.2605439]
[1746412655711,0.00959678,94450.0,94449.0,0.2595439]
[1746412656009,0.01659678,94450.0,94449.0,0.2605439]
[1746412656210,0.01659678,94450.0,94449.0,0.3099439]
[1746412656420,0.22833838,94450.0,94449.0,0.0488]
[1746412656712,0.22833838,94450.0,94449.0,0.001]
[1746412656898,0.22833838,94450.0,94444.0,0.0494]
[1746412656899,0.2117528,94445.0,94444.0,0.1487385]
[1746412657302,0.3317528,94445.0,94444.0,0.3604867]
[1746412657812,0.4279528,94445.0,94444.0,0.3604867]
[1746412658112,0.3079528,94445.0,94444.0,0.3604867]
[1746412659114,0.4279528,94445.0,94444.0,0.3604867]
[1746412659413,0.4349528,94445.0,94444.0,0.3604867]
[1746412660114,0.3149528,94445.0,94444.0,0.3614867]
[1746412660710,0.3149528,94445.0,94444.0,0.3604867]
[1746412661308,0.4349528,94445.0,94444.0,0.3604867]
[1746412662012,0.4349528,94445.0,94444.0,0.3110867]
[1746412662216,0.4349528,94445.0,94444.0,0.2646867]
[1746412662618,0.4349528,94445.0,94444.0,0.2117482]
[1746412662915,0.2117551,94444.0,94443.0,0.3608]
[1746412663112,0.3317551,94444.0,94443.0,0.5725573]
[1746412663312,0.4274551,94444.0,94443.0,0.5725573]
[1746412664018,0.4274551,94444.0,94443.0,0.6201573]
[1746412664217,0.4344551,94444.0,94443.0,0.6201573]
[1746412666017,0.2227,94444.0,94443.0,0.6201573]
[1746412666618,0.1749,94444.0,94443.0,0.6201573]
[1746412666917,0.127,94444.0,94443.0,0.6201573]
[1746412667120,0.007,94444.0,94443.0,0.6201573]
[1746412668720,0.00959678,94450.0,94449.0,0.2117439]
[1746412669622,0.05579678,94450.0,94449.0,0.2117439]
[1746412669819,0.05579678,94450.0,94449.0,0.3058439]
[1746412670124,0.06279678,94450.0,94449.0,0.3058439]
[1746412671631,0.27453838,94450.0,94449.0,0.3058439]
[1746412671922,0.27453838,94450.0,94445.0,0.0529377]
[1746412671923,0.0529369,94448.0,94445.0,0.264686]
[1746412672115,0.2117506,94446.0,94445.0,0.264686]
[1746412672718,0.3059506,94446.0,94445.0,0.264686]
[1746412673423,0.4329506,94446.0,94445.0,0.264686]
[1746412674623,0.4259506,94446.0,94445.0,0.264686]
[1746412674810,0.4329506,94446.0,94445.0,0.265686]
[1746412675011,0.4329506,94446.0,94445.0,0.001]
[1746412675215,0.4329506,94446.0,94445.0,0.2127528]
[1746412676024,0.4319506,94446.0,94445.0,0.2127528]
[1746412676426,0.4259506,94446.0,94445.0,0.2117528]
[1746412676627,0.4329506,94446.0,94445.0,0.2137528]
[1746412682028,0.4329506,94446.0,94445.0,0.2628528]
[1746412683430,0.4329506,94446.0,94428.0,0.3608]
[1746412683431,0.2117887,94429.0,94428.0,0.3608]
[1746412683636,0.211784,94434.0,94433.0,0.2117718]
[1746412684126,0.331784,94434.0,94433.0,0.2117718]
[1746412684324,0.426584,94434.0,94433.0,0.2117718]
[1746412684521,0.426584,94434.0,94433.0,0.2608718]
[1746412684725,0.2148,94434.0,94433.0,0.2608718]
[1746412684925,0.4265775,94434.0,94433.0,0.2608718]
[1746412685522,0.4275775,94434.0,94433.0,0.2608718]
[1746412686032,0.4345775,94434.0,94433.0,0.2618718]
[1746412687536,0.4355775,94434.0,94433.0,0.2618718]
[1746412687832,0.3870775,94434.0,94433.0,0.2618718]
[1746412688032,0.3860775,94434.0,94433.0,0.2618718]
[1746412688239,0.3880775,94434.0,94433.0,0.2618718]
[1746412689037,0.3860775,94434.0,94433.0,0.2618718]
[1746412689227,0.3880775,94434.0,94433.0,0.2618718]
[1746412692641,0.3880775,94434.0,94433.0,0.001]
[1746412692831,0.4380775,94434.0,94433.0,0.2127797]
[1746412695235,0.2263,94434.0,94433.0,0.2127797]
[1746412695838,0.1763,94434.0,94433.0,0.2127797]
[1746412696039,0.1763,94434.0,94433.0,0.3079797]
[1746412696736,0.13,94434.0,94433.0,0.3079797]
[1746412697137,0.01,94434.0,94433.0,0.3079797]
[1746412698042,0.2717775,94434.0,94433.0,0.001]
[1746412698242,0.3917775,94434.0,94433.0,0.2127797]
[1746412698740,0.3917775,94434.0,94433.0,0.001]
[1746412698934,0.4867775,94434.0,94433.0,0.001]
[1746412699335,0.4867775,94434.0,94433.0,0.2127797]
[1746412704151,0.4367775,94434.0,94433.0,0.2127797]
[1746412707850,0.4367775,94434.0,94433.0,0.001]
[1746412708952,0.4367775,94434.0,94433.0,0.2127797]
[1746412709155,0.4867775,94434.0,94433.0,0.2127797]
[1746412710572,0.4907775,94434.0,94433.0,0.2127797]
[1746412710768,0.4877775,94434.0,94433.0,0.2127797]
[1746412712369,0.4877775,94434.0,94433.0,0.001]
[1746412712565,0.2118179,94416.0,94401.0,0.3608]
[1746412712863,0.2118179,94416.0,94415.0,0.21287925]
[1746412713060,0.2118179,94416.0,94415.0,0.00105915]
[1746412713266,0.2118179,94416.0,94415.0,0.21287925]
[1746412713770,0.2118179,94416.0,94415.0,0.20587925]
[1746412713966,0.2597179,94416.0,94415.0,0.20587925]
[1746412714270,0.3847179,94416.0,94415.0,0.20587925]
[1746412714768,0.3847179,94416.0,94415.0,0.25287925]
[1746412716173,0.3847179,94416.0,94415.0,0.047]
[1746412716672,0.3797179,94416.0,94415.0,0.047]
[1746412716872,0.3847179,94416.0,94415.0,0.047]
[1746412717173,0.3847179,94416.0,94415.0,0.2588201]
[1746412717575,0.3867179,94416.0,94415.0,0.2588201]
[1746412718972,0.3867179,94416.0,94415.0,0.047]
[1746412719870,0.3867179,94416.0,94415.0,0.2588201]
[1746412720068,0.127,94416.0,94415.0,0.2588201]
[1746412720268,0.007,94416.0,94415.0,0.2588201]
[1746412720573,0.258314,94418.0,94417.0,0.2118156]
[1746412720776,0.258314,94418.0,94417.0,0.5726156]
[1746412721072,0.2118082,94421.0,94420.0,0.2118089]
[1746412721672,0.2118082,94421.0,94420.0,0.3083089]
[1746412721975,0.2118022,94423.0,94422.0,0.2118022]
[1746412722164,0.3818022,94423.0,94422.0,0.2118022]
[1746412723871,0.17,94423.0,94422.0,0.2118022]
[1746412724075,0.21551255,94424.0,94423.0,0.2118022]
[1746412724769,0.2118022,94423.0,94422.0,0.001]
[1746412725076,0.4277022,94423.0,94422.0,0.2128022]
[1746412725378,0.4267022,94423.0,94422.0,0.2118022]
[1746412726275,0.64221475,94423.0,94422.0,0.2118022]
[1746412726773,0.65221475,94423.0,94422.0,0.2128022]
[1746412727574,0.65021475,94423.0,94422.0,0.2118022]
[1746412728276,0.64221475,94423.0,94422.0,0.2118022]
[1746412728473,0.2118134,94418.0,94417.0,0.3608]
[1746412729274,0.3818134,94418.0,94417.0,0.3608]
[1746412729479,0.2118313,94410.0,94409.0,0.5726336]
[1746412730077,0.3318313,94410.0,94409.0,0.5726336]
[1746412730566,0.4271313,94410.0,94409.0,0.5726336]
[1746412730975,0.2153,94410.0,94409.0,0.5726336]
[1746412731167,0.12,94410.0,94409.0,0.5726336]
[1746412731572,0.128,94410.0,94409.0,0.5726336]
[1746412732277,0.0497,94413.0,94412.0,0.2118268]
[1746412732677,0.2615246,94413.0,94412.0,0.2118268]
[1746412734581,0.2705246,94413.0,94412.0,0.2128268]
[1746412736383,0.3905246,94413.0,94412.0,0.2128268]
[1746412736781,0.3815246,94413.0,94412.0,0.2118268]
[1746412736981,0.3905246,94413.0,94412.0,0.2128268]
[1746412737281,0.3905246,94413.0,94412.0,0.2623268]
[1746412738380,0.3815246,94413.0,94412.0,0.2613268]
[1746412738684,0.3905246,94413.0,94412.0,0.2623268]
[1746412739885,0.3895246,94413.0,94412.0,0.2613268]
[1746412740786,0.3905246,94413.0,94412.0,0.2623268]
[1746412741583,0.3815246,94413.0,94412.0,0.2613268]
[1746412741889,0.3905246,94413.0,94412.0,0.2623268]
[1746412742087,0.3905246,94413.0,94412.0,0.0505]
[1746412742284,0.4405246,94413.0,94412.0,0.001]
[1746412743186,0.2108268,94412.0,94411.0,0.2118281]
[1746412743386,0.2592268,94412.0,94411.0,0.2118281]
[1746412743586,0.3072268,94412.0,94411.0,0.2118281]
[1746412744388,0.3162268,94412.0,94411.0,0.2128281]
[1746412745281,0.4362268,94412.0,94411.0,0.2128281]
[1746412746189,0.3172268,94412.0,94411.0,0.2128281]
[1746412746388,0.3172268,94412.0,94411.0,0.2592281]
[1746412747387,0.01,94412.0,94411.0,0.2592281]